{"text_format":"1","workbook":"xlsx","n_sheets":8,"sheets":["Übersicht","1 - Vergleichszeitraum","2 - Förderzeitraum","3 - Unternehmensangaben","Import","Zählpunkte Schritt 1","Zählpunkte Schritt 2","Liste"],"not_rendered":{"charts":0,"images":6,"macros":1,"external_links":0,"defined_names":4,"comments":0,"pivot_tables":0},"unopened":[],"bounds":{"document_bytes":16777216,"sheet_cells":100000,"rows_first":2000,"rows_last":500,"rows_between":2000,"halvings":0,"cell_chars":16384,"cell_head_chars":4096},"cells_cut":0,"cells_raw":0,"read":"whole","date_system":"1900"}

{"sheet":"Übersicht","index":0,"n_rows":96,"n_cols":18,"rows_kept":96,"cut":false,"hidden":false,"merged":[[5,4,5,7]]}
[]
[null,"Energiekostenzuschuss"]
[null,"Ermitteln Sie in wenigen Schritte Ihren Zuschuss in der Berechnungsstufe (Stufe 2 bis Stufe 4)"]
[null,"Version","1.0.0"]
[]
[null,"Ihre firmeninterne Referenz",null,null,null,null,null,null,"i","Firmenwortlaut, internes Aktenkennzeichen, o.ä."]
[]
[null,"Einleitung"]
[]
[null,"Bitte befüllen Sie die folgenden Tabellenblätter, um Ihren Zuschuss zu berechnen:"]
[]
[null,"1 - Vergleichszeitraum…..........................",null,null,{"$f":"IF(OR(AND('1 - Vergleichszeitraum'!H14=\"\",COUNTIFS('1 - Vergleichszeitraum'!H:H,\"Strom\")>0),AND('1 - Vergleichszeitraum'!H19=\"\",COUNTIFS('1 - Vergleichszeitraum'!H:H,\"Erdgas\")>0),AND('1 - Vergleichszeitraum'!H14>0,COUNTIFS('1 - Vergleichszeitraum'!H:H,\"Strom\")=0),AND('1 - Vergleichszeitraum'!H19>0,COUNTIFS('1 - Vergleichszeitraum'!H:H,\"Erdgas\")=0)),\"Eingaben offen\",IF(AND('1 - Vergleichszeitraum'!H14>0,COUNTIFS('1 - Vergleichszeitraum'!H:H,\"Strom\")>0),\"Eingaben vorhanden\",IF(AND('1 - Vergleichszeitraum'!H19>0,COUNTIFS('1 - Vergleichszeitraum'!H:H,\"Erdgas\")>0),\"Eingaben vorhanden\",\"Eingaben offen\")))","v":"Eingaben offen"}]
[null,"2 - Förderzeitraum…................................",null,null,{"$f":"IF('2 - Förderzeitraum'!H14,\"Eingaben vorhanden\",\"Eingaben offen\")","v":"Eingaben offen"}]
[null,"3 - Unternehmensangaben…....................",null,null,{"$f":"IF((SUM(I42:P42))<1200000,\"Keine Eingaben erforderlich\",IF(AND('3 - Unternehmensangaben'!D12<>\"\",'3 - Unternehmensangaben'!F15<>\"\"),\"Eingaben vorhanden\",\"Eingaben offen\"))","v":"Keine Eingaben erforderlich"}]
[]
[]
[null,"Ausgehend von Ihren Angaben beläuft sich Ihr Energiekostenzuschuss auf:",null,null,null,null,null,null,{"$f":"IF(SUM(I42:P42)<=2000,0,IF(AND(MIN(SUM(I96:P96),SUMIF('3 - Unternehmensangaben'!D12:K12,\"<0\",'3 - Unternehmensangaben'!D12:K12)*0.8*-1)>25000000,'3 - Unternehmensangaben'!F15=\"Ja\"),MIN(SUM(I96:P96),SUMIF('3 - Unternehmensangaben'!D12:K12,\"<0\",'3 - Unternehmensangaben'!D12:K12)*0.8*-1,50000000),IF(MIN(SUM(I69:P69),SUMIF('3 - Unternehmensangaben'!D12:K12,\"<0\",'3 - Unternehmensangaben'!D12:K12)*0.8*-1)>2000000,MIN(SUM(I69:P69),SUMIF('3 - Unternehmensangaben'!D12:K12,\"<0\",'3 - Unternehmensangaben'!D12:K12)*0.8*-1,25000000),MIN(SUM(Übersicht!I42:P42),2000000))))","v":0},{"$f":"IF(AND(MIN(SUM(I96:P96),SUMIF('3 - Unternehmensangaben'!D12:K12,\"<0\",'3 - Unternehmensangaben'!D12:K12)*0.8*-1)>25000000,'3 - Unternehmensangaben'!F15=\"Ja\"),\"EUR in der Berechnungsstufe (Stufe 4)\",IF(MIN(SUM(I69:P69),SUMIF('3 - Unternehmensangaben'!D12:K12,\"<0\",'3 - Unternehmensangaben'!D12:K12)*0.8*-1)>2000000,\"EUR in der Berechnungsstufe (Stufe 3)\",\"EUR in der Berechnungsstufe (Stufe 2)\"))","v":"EUR in der Berechnungsstufe (Stufe 2)"},null,null,"i",{"$f":"IF(I17<=2000,\"Der mögliche Energiekostenzuschuss liegt unter der betragsmäßigen Untergrenze von EUR 2.000,-\",\"\")","v":"Der mögliche Energiekostenzuschuss liegt unter der betragsmäßigen Untergrenze von EUR 2.000,-"}]
[]
[null,"Für detaillierte Berechnungsinformationen klicken Sie bitte auf das + auf der linken Seite."]
[]
[null,"Stufe 2"]
[null,"Strom",null,null,null,null,null,null,"Feb","Mär","Apr","Mai","Jun","Jul","Aug","Sep"]
[null,"Durchschnittsarbeitspreis in EUR aller Zählpunkte im Förderungszeitraum",null,null,null,null,null,null,{"$f":"SUMIFS('2 - Förderzeitraum'!I:I,'2 - Förderzeitraum'!$B:$B,\"Zwischensumme Strom\")","v":0},{"$f":"SUMIFS('2 - Förderzeitraum'!J:J,'2 - Förderzeitraum'!$B:$B,\"Zwischensumme Strom\")","v":0},{"$f":"SUMIFS('2 - Förderzeitraum'!K:K,'2 - Förderzeitraum'!$B:$B,\"Zwischensumme Strom\")","v":0},{"$f":"SUMIFS('2 - Förderzeitraum'!L:L,'2 - Förderzeitraum'!$B:$B,\"Zwischensumme Strom\")","v":0},{"$f":"SUMIFS('2 - Förderzeitraum'!M:M,'2 - Förderzeitraum'!$B:$B,\"Zwischensumme Strom\")","v":0},{"$f":"SUMIFS('2 - Förderzeitraum'!N:N,'2 - Förderzeitraum'!$B:$B,\"Zwischensumme Strom\")","v":0},{"$f":"SUMIFS('2 - Förderzeitraum'!O:O,'2 - Förderzeitraum'!$B:$B,\"Zwischensumme Strom\")","v":0},{"$f":"SUMIFS('2 - Förderzeitraum'!P:P,'2 - Förderzeitraum'!$B:$B,\"Zwischensumme Strom\")","v":0}]
[null,"Durchschnittsarbeitspreis in EUR aller Zählpunkte im Jahr 2021",null,null,null,null,null,null,{"$f":"'1 - Vergleichszeitraum'!$H$14","v":0},{"$f":"'1 - Vergleichszeitraum'!$H$14","v":0},{"$f":"'1 - Vergleichszeitraum'!$H$14","v":0},{"$f":"'1 - Vergleichszeitraum'!$H$14","v":0},{"$f":"'1 - Vergleichszeitraum'!$H$14","v":0},{"$f":"'1 - Vergleichszeitraum'!$H$14","v":0},{"$f":"'1 - Vergleichszeitraum'!$H$14","v":0},{"$f":"'1 - Vergleichszeitraum'!$H$14","v":0}]
[null,"Anstieg des Arbeitspreises in EUR",null,null,null,null,null,null,{"$f":"MAX(I23-2*I24,0)","v":0},{"$f":"MAX(J23-2*J24,0)","v":0},0,0,0,0,0,0,"i","Mon. Durchschnittsarbeitspreis 2022 - Doppelter Durchschnittsarbeitspreis 2021"]
[]
[null,"Stromverbrauch in kWh von 1. Februar bis 30. September 2022",null,null,null,null,null,null,{"$f":"SUMIFS('2 - Förderzeitraum'!I:I,'2 - Förderzeitraum'!$B:$B,\"Stromverbrauch in kWh von 1. Februar bis 30. September 2022\")","v":0},{"$f":"SUMIFS('2 - Förderzeitraum'!J:J,'2 - Förderzeitraum'!$B:$B,\"Stromverbrauch in kWh von 1. Februar bis 30. September 2022\")","v":0},{"$f":"SUMIFS('2 - Förderzeitraum'!K:K,'2 - Förderzeitraum'!$B:$B,\"Stromverbrauch in kWh von 1. Februar bis 30. September 2022\")","v":0},{"$f":"SUMIFS('2 - Förderzeitraum'!L:L,'2 - Förderzeitraum'!$B:$B,\"Stromverbrauch in kWh von 1. Februar bis 30. September 2022\")","v":0},{"$f":"SUMIFS('2 - Förderzeitraum'!M:M,'2 - Förderzeitraum'!$B:$B,\"Stromverbrauch in kWh von 1. Februar bis 30. September 2022\")","v":0},{"$f":"SUMIFS('2 - Förderzeitraum'!N:N,'2 - Förderzeitraum'!$B:$B,\"Stromverbrauch in kWh von 1. Februar bis 30. September 2022\")","v":0},{"$f":"SUMIFS('2 - Förderzeitraum'!O:O,'2 - Förderzeitraum'!$B:$B,\"Stromverbrauch in kWh von 1. Februar bis 30. September 2022\")","v":0},{"$f":"SUMIFS('2 - Förderzeitraum'!P:P,'2 - Förderzeitraum'!$B:$B,\"Stromverbrauch in kWh von 1. Februar bis 30. September 2022\")","v":0}]
[null,"Stromverbrauch in kWh von 1. Februar bis 30. September 2021",null,null,null,null,null,{"$f":"SUM(I28:P28)","v":0},{"$f":"SUMIFS('1 - Vergleichszeitraum'!I:I,'1 - Vergleichszeitraum'!$B:$B,\"Stromverbrauch in kWh von 1. Februar bis 30. September 2021\")","v":0},{"$f":"SUMIFS('1 - Vergleichszeitraum'!J:J,'1 - Vergleichszeitraum'!$B:$B,\"Stromverbrauch in kWh von 1. Februar bis 30. September 2021\")","v":0},{"$f":"SUMIFS('1 - Vergleichszeitraum'!K:K,'1 - Vergleichszeitraum'!$B:$B,\"Stromverbrauch in kWh von 1. Februar bis 30. September 2021\")","v":0},{"$f":"SUMIFS('1 - Vergleichszeitraum'!L:L,'1 - Vergleichszeitraum'!$B:$B,\"Stromverbrauch in kWh von 1. Februar bis 30. September 2021\")","v":0},{"$f":"SUMIFS('1 - Vergleichszeitraum'!M:M,'1 - Vergleichszeitraum'!$B:$B,\"Stromverbrauch in kWh von 1. Februar bis 30. September 2021\")","v":0},{"$f":"SUMIFS('1 - Vergleichszeitraum'!N:N,'1 - Vergleichszeitraum'!$B:$B,\"Stromverbrauch in kWh von 1. Februar bis 30. September 2021\")","v":0},{"$f":"SUMIFS('1 - Vergleichszeitraum'!O:O,'1 - Vergleichszeitraum'!$B:$B,\"Stromverbrauch in kWh von 1. Februar bis 30. September 2021\")","v":0},{"$f":"SUMIFS('1 - Vergleichszeitraum'!P:P,'1 - Vergleichszeitraum'!$B:$B,\"Stromverbrauch in kWh von 1. Februar bis 30. September 2021\")","v":0}]
[null,"Förderungsfähiger Stromverbrauch in kWh",null,null,null,null,null,null,{"$f":"MIN(I27,I28*0.7)","v":0},{"$f":"MIN(J27,J28*0.7)","v":0},{"$f":"MIN(K27,K28*0.7)","v":0},0,0,0,0,0,"i","Max. 70 % des Vorjahresverbrauchs im betreffenden Monat"]
[]
[null,"Erdgas",null,null,null,null,null,null,"Feb","Mär","Apr","Mai","Jun","Jul","Aug","Sep"]
[null,"Durchschnittsarbeitspreis in EUR aller Zählpunkte im Förderungszeitraum",null,null,null,null,null,null,{"$f":"SUMIFS('2 - Förderzeitraum'!I:I,'2 - Förderzeitraum'!$B:$B,\"Zwischensumme Erdgas\")","v":0},{"$f":"SUMIFS('2 - Förderzeitraum'!J:J,'2 - Förderzeitraum'!$B:$B,\"Zwischensumme Erdgas\")","v":0},{"$f":"SUMIFS('2 - Förderzeitraum'!K:K,'2 - Förderzeitraum'!$B:$B,\"Zwischensumme Erdgas\")","v":0},{"$f":"SUMIFS('2 - Förderzeitraum'!L:L,'2 - Förderzeitraum'!$B:$B,\"Zwischensumme Erdgas\")","v":0},{"$f":"SUMIFS('2 - Förderzeitraum'!M:M,'2 - Förderzeitraum'!$B:$B,\"Zwischensumme Erdgas\")","v":0},{"$f":"SUMIFS('2 - Förderzeitraum'!N:N,'2 - Förderzeitraum'!$B:$B,\"Zwischensumme Erdgas\")","v":0},{"$f":"SUMIFS('2 - Förderzeitraum'!O:O,'2 - Förderzeitraum'!$B:$B,\"Zwischensumme Erdgas\")","v":0},{"$f":"SUMIFS('2 - Förderzeitraum'!P:P,'2 - Förderzeitraum'!$B:$B,\"Zwischensumme Erdgas\")","v":0}]
[null,"Durchschnittsarbeitspreis in EUR aller Zählpunkte im Jahr 2021",null,null,null,null,null,null,{"$f":"'1 - Vergleichszeitraum'!$H$19","v":0},{"$f":"'1 - Vergleichszeitraum'!$H$19","v":0},{"$f":"'1 - Vergleichszeitraum'!$H$19","v":0},{"$f":"'1 - Vergleichszeitraum'!$H$19","v":0},{"$f":"'1 - Vergleichszeitraum'!$H$19","v":0},{"$f":"'1 - Vergleichszeitraum'!$H$19","v":0},{"$f":"'1 - Vergleichszeitraum'!$H$19","v":0},{"$f":"'1 - Vergleichszeitraum'!$H$19","v":0}]
[null,"Anstieg des Arbeitspreises in EUR",null,null,null,null,null,null,{"$f":"MAX(I32-2*I33,0)","v":0},{"$f":"MAX(J32-2*J33,0)","v":0},{"$f":"MAX(K32-2*K33,0)","v":0},{"$f":"MAX(L32-2*L33,0)","v":0},{"$f":"MAX(M32-2*M33,0)","v":0},{"$f":"MAX(N32-2*N33,0)","v":0},{"$f":"MAX(O32-2*O33,0)","v":0},{"$f":"MAX(P32-2*P33,0)","v":0},"i","Mon. Durchschnittsarbeitspreis 2022 - Doppelter Durchschnittsarbeitspreis 2021"]
[]
[null,"Erdgasverbrauch in kWh von 1. Februar bis 30. September 2022",null,null,null,null,null,null,{"$f":"SUMIFS('2 - Förderzeitraum'!I:I,'2 - Förderzeitraum'!$B:$B,\"Erdgasverbrauch in kWh von 1. Februar bis 30. September 2022\")","v":0},{"$f":"SUMIFS('2 - Förderzeitraum'!J:J,'2 - Förderzeitraum'!$B:$B,\"Erdgasverbrauch in kWh von 1. Februar bis 30. September 2022\")","v":0},{"$f":"SUMIFS('2 - Förderzeitraum'!K:K,'2 - Förderzeitraum'!$B:$B,\"Erdgasverbrauch in kWh von 1. Februar bis 30. September 2022\")","v":0},{"$f":"SUMIFS('2 - Förderzeitraum'!L:L,'2 - Förderzeitraum'!$B:$B,\"Erdgasverbrauch in kWh von 1. Februar bis 30. September 2022\")","v":0},{"$f":"SUMIFS('2 - Förderzeitraum'!M:M,'2 - Förderzeitraum'!$B:$B,\"Erdgasverbrauch in kWh von 1. Februar bis 30. September 2022\")","v":0},{"$f":"SUMIFS('2 - Förderzeitraum'!N:N,'2 - Förderzeitraum'!$B:$B,\"Erdgasverbrauch in kWh von 1. Februar bis 30. September 2022\")","v":0},{"$f":"SUMIFS('2 - Förderzeitraum'!O:O,'2 - Förderzeitraum'!$B:$B,\"Erdgasverbrauch in kWh von 1. Februar bis 30. September 2022\")","v":0},{"$f":"SUMIFS('2 - Förderzeitraum'!P:P,'2 - Förderzeitraum'!$B:$B,\"Erdgasverbrauch in kWh von 1. Februar bis 30. September 2022\")","v":0}]
[null,"Erdgasverbrauch in kWh von 1. Februar bis 30. September 2021",null,null,null,null,null,{"$f":"SUM(I37:P37)","v":0},{"$f":"SUMIFS('1 - Vergleichszeitraum'!I:I,'1 - Vergleichszeitraum'!$B:$B,\"Erdgasverbrauch in kWh von 1. Februar bis 30. September 2021\")","v":0},{"$f":"SUMIFS('1 - Vergleichszeitraum'!J:J,'1 - Vergleichszeitraum'!$B:$B,\"Erdgasverbrauch in kWh von 1. Februar bis 30. September 2021\")","v":0},{"$f":"SUMIFS('1 - Vergleichszeitraum'!K:K,'1 - Vergleichszeitraum'!$B:$B,\"Erdgasverbrauch in kWh von 1. Februar bis 30. September 2021\")","v":0},{"$f":"SUMIFS('1 - Vergleichszeitraum'!L:L,'1 - Vergleichszeitraum'!$B:$B,\"Erdgasverbrauch in kWh von 1. Februar bis 30. September 2021\")","v":0},{"$f":"SUMIFS('1 - Vergleichszeitraum'!M:M,'1 - Vergleichszeitraum'!$B:$B,\"Erdgasverbrauch in kWh von 1. Februar bis 30. September 2021\")","v":0},{"$f":"SUMIFS('1 - Vergleichszeitraum'!N:N,'1 - Vergleichszeitraum'!$B:$B,\"Erdgasverbrauch in kWh von 1. Februar bis 30. September 2021\")","v":0},{"$f":"SUMIFS('1 - Vergleichszeitraum'!O:O,'1 - Vergleichszeitraum'!$B:$B,\"Erdgasverbrauch in kWh von 1. Februar bis 30. September 2021\")","v":0},{"$f":"SUMIFS('1 - Vergleichszeitraum'!P:P,'1 - Vergleichszeitraum'!$B:$B,\"Erdgasverbrauch in kWh von 1. Februar bis 30. September 2021\")","v":0}]
[null,"Förderungsfähiger Erdgasverbrauch in kWh",null,null,null,null,null,null,{"$f":"MIN(I36,I37*0.7)","v":0},{"$f":"MIN(J36,J37*0.7)","v":0},{"$f":"MIN(K36,K37*0.7)","v":0},{"$f":"MIN(L36,L37*0.7)","v":0},{"$f":"MIN(M36,M37*0.7)","v":0},{"$f":"MIN(N36,N37*0.7)","v":0},{"$f":"MIN(O36,O37*0.7)","v":0},{"$f":"MIN(P36,P37*0.7)","v":0},"i","Max. 70 % des Vorjahresverbrauchs im betreffenden Monat"]
[]
[null,"Energiekostenzuschuss für Strom in EUR",null,null,null,null,null,null,{"$f":"I25*I29*0.3","v":0},0,0,0,0,0,0,0,"i","Anstieg des Arbeitspreises x Förderungsfähiger Stromverbrauch in kWh x 30 %"]
[null,"Energiekostenzuschuss für Erdgas in EUR",null,null,null,null,null,null,{"$f":"I34*I38*0.3","v":0},0,0,0,0,0,0,0,"i","Anstieg des Arbeitspreises x Förderungsfähiger Stromverbrauch in kWh x 30 %"]
[null,"Energiekostenzuschuss in EUR",null,null,null,null,null,null,{"$f":"SUM(I40:I41)","v":0},{"$f":"SUM(J40:J41)","v":0},0,0,0,0,0,0]
[]
[null,"Stufe 3"]
[null,"Strom",null,null,null,null,null,null,"Feb","Mär","Apr","Mai","Jun","Jul","Aug","Sep"]
[null,"Durchschnittsarbeitspreis in EUR aller Zählpunkte im Förderungszeitraum",null,null,null,null,null,null,{"$f":"SUMIFS('2 - Förderzeitraum'!I:I,'2 - Förderzeitraum'!$B:$B,\"Zwischensumme Strom\")","v":0},{"$f":"SUMIFS('2 - Förderzeitraum'!J:J,'2 - Förderzeitraum'!$B:$B,\"Zwischensumme Strom\")","v":0},{"$f":"SUMIFS('2 - Förderzeitraum'!K:K,'2 - Förderzeitraum'!$B:$B,\"Zwischensumme Strom\")","v":0},{"$f":"SUMIFS('2 - Förderzeitraum'!L:L,'2 - Förderzeitraum'!$B:$B,\"Zwischensumme Strom\")","v":0},{"$f":"SUMIFS('2 - Förderzeitraum'!M:M,'2 - Förderzeitraum'!$B:$B,\"Zwischensumme Strom\")","v":0},{"$f":"SUMIFS('2 - Förderzeitraum'!N:N,'2 - Förderzeitraum'!$B:$B,\"Zwischensumme Strom\")","v":0},{"$f":"SUMIFS('2 - Förderzeitraum'!O:O,'2 - Förderzeitraum'!$B:$B,\"Zwischensumme Strom\")","v":0},{"$f":"SUMIFS('2 - Förderzeitraum'!P:P,'2 - Förderzeitraum'!$B:$B,\"Zwischensumme Strom\")","v":0}]
[null,"Durchschnittsarbeitspreis in EUR aller Zählpunkte im Jahr 2021",null,null,null,null,null,null,{"$f":"'1 - Vergleichszeitraum'!$H$14","v":0},{"$f":"'1 - Vergleichszeitraum'!$H$14","v":0},{"$f":"'1 - Vergleichszeitraum'!$H$14","v":0},{"$f":"'1 - Vergleichszeitraum'!$H$14","v":0},{"$f":"'1 - Vergleichszeitraum'!$H$14","v":0},{"$f":"'1 - Vergleichszeitraum'!$H$14","v":0},{"$f":"'1 - Vergleichszeitraum'!$H$14","v":0},{"$f":"'1 - Vergleichszeitraum'!$H$14","v":0}]
[null,"Anstieg des Arbeitspreises in EUR",null,null,null,null,null,null,{"$f":"MAX(I46-2*I47,0)","v":0},{"$f":"MAX(J46-2*J47,0)","v":0},{"$f":"MAX(K46-2*K47,0)","v":0},{"$f":"MAX(L46-2*L47,0)","v":0},{"$f":"MAX(M46-2*M47,0)","v":0},{"$f":"MAX(N46-2*N47,0)","v":0},{"$f":"MAX(O46-2*O47,0)","v":0},{"$f":"MAX(P46-2*P47,0)","v":0},"i","Mon. Durchschnittsarbeitspreis 2022 - Doppelter Durchschnittsarbeitspreis 2021"]
[]
[null,"Stromverbrauch in kWh von 1. Februar bis 30. September 2022",null,null,null,null,null,null,{"$f":"SUMIFS('2 - Förderzeitraum'!I:I,'2 - Förderzeitraum'!$B:$B,\"Stromverbrauch in kWh von 1. Februar bis 30. September 2022\")","v":0},{"$f":"SUMIFS('2 - Förderzeitraum'!J:J,'2 - Förderzeitraum'!$B:$B,\"Stromverbrauch in kWh von 1. Februar bis 30. September 2022\")","v":0},{"$f":"SUMIFS('2 - Förderzeitraum'!K:K,'2 - Förderzeitraum'!$B:$B,\"Stromverbrauch in kWh von 1. Februar bis 30. September 2022\")","v":0},{"$f":"SUMIFS('2 - Förderzeitraum'!L:L,'2 - Förderzeitraum'!$B:$B,\"Stromverbrauch in kWh von 1. Februar bis 30. September 2022\")","v":0},{"$f":"SUMIFS('2 - Förderzeitraum'!M:M,'2 - Förderzeitraum'!$B:$B,\"Stromverbrauch in kWh von 1. Februar bis 30. September 2022\")","v":0},{"$f":"SUMIFS('2 - Förderzeitraum'!N:N,'2 - Förderzeitraum'!$B:$B,\"Stromverbrauch in kWh von 1. Februar bis 30. September 2022\")","v":0},{"$f":"SUMIFS('2 - Förderzeitraum'!O:O,'2 - Förderzeitraum'!$B:$B,\"Stromverbrauch in kWh von 1. Februar bis 30. September 2022\")","v":0},{"$f":"SUMIFS('2 - Förderzeitraum'!P:P,'2 - Förderzeitraum'!$B:$B,\"Stromverbrauch in kWh von 1. Februar bis 30. September 2022\")","v":0}]
[null,"Stromverbrauch in kWh von 1. Februar bis 30. September 2021",null,null,null,null,null,{"$f":"SUM(I51:P51)","v":0},{"$f":"SUMIFS('1 - Vergleichszeitraum'!I:I,'1 - Vergleichszeitraum'!$B:$B,\"Stromverbrauch in kWh von 1. Februar bis 30. September 2021\")","v":0},{"$f":"SUMIFS('1 - Vergleichszeitraum'!J:J,'1 - Vergleichszeitraum'!$B:$B,\"Stromverbrauch in kWh von 1. Februar bis 30. September 2021\")","v":0},{"$f":"SUMIFS('1 - Vergleichszeitraum'!K:K,'1 - Vergleichszeitraum'!$B:$B,\"Stromverbrauch in kWh von 1. Februar bis 30. September 2021\")","v":0},{"$f":"SUMIFS('1 - Vergleichszeitraum'!L:L,'1 - Vergleichszeitraum'!$B:$B,\"Stromverbrauch in kWh von 1. Februar bis 30. September 2021\")","v":0},{"$f":"SUMIFS('1 - Vergleichszeitraum'!M:M,'1 - Vergleichszeitraum'!$B:$B,\"Stromverbrauch in kWh von 1. Februar bis 30. September 2021\")","v":0},{"$f":"SUMIFS('1 - Vergleichszeitraum'!N:N,'1 - Vergleichszeitraum'!$B:$B,\"Stromverbrauch in kWh von 1. Februar bis 30. September 2021\")","v":0},{"$f":"SUMIFS('1 - Vergleichszeitraum'!O:O,'1 - Vergleichszeitraum'!$B:$B,\"Stromverbrauch in kWh von 1. Februar bis 30. September 2021\")","v":0},{"$f":"SUMIFS('1 - Vergleichszeitraum'!P:P,'1 - Vergleichszeitraum'!$B:$B,\"Stromverbrauch in kWh von 1. Februar bis 30. September 2021\")","v":0}]
[null,"Förderungsfähiger Stromverbrauch in kWh",null,null,null,null,null,null,{"$f":"MIN(I50,I51*0.7)","v":0},{"$f":"MIN(J50,J51*0.7)","v":0},{"$f":"MIN(K50,K51*0.7)","v":0},{"$f":"MIN(L50,L51*0.7)","v":0},{"$f":"MIN(M50,M51*0.7)","v":0},{"$f":"MIN(N50,N51*0.7)","v":0},{"$f":"MIN(O50,O51*0.7)","v":0},{"$f":"MIN(P50,P51*0.7)","v":0},"i","Max. 70 % des Vorjahresverbrauchs im betreffenden Monat"]
[]
[null,"Erdgas",null,null,null,null,null,null,"Feb","Mär","Apr","Mai","Jun","Jul","Aug","Sep"]
[null,"Durchschnittsarbeitspreis in EUR aller Zählpunkte im Förderungszeitraum",null,null,null,null,null,null,{"$f":"SUMIFS('2 - Förderzeitraum'!I:I,'2 - Förderzeitraum'!$B:$B,\"Zwischensumme Erdgas\")","v":0},{"$f":"SUMIFS('2 - Förderzeitraum'!J:J,'2 - Förderzeitraum'!$B:$B,\"Zwischensumme Erdgas\")","v":0},{"$f":"SUMIFS('2 - Förderzeitraum'!K:K,'2 - Förderzeitraum'!$B:$B,\"Zwischensumme Erdgas\")","v":0},{"$f":"SUMIFS('2 - Förderzeitraum'!L:L,'2 - Förderzeitraum'!$B:$B,\"Zwischensumme Erdgas\")","v":0},{"$f":"SUMIFS('2 - Förderzeitraum'!M:M,'2 - Förderzeitraum'!$B:$B,\"Zwischensumme Erdgas\")","v":0},{"$f":"SUMIFS('2 - Förderzeitraum'!N:N,'2 - Förderzeitraum'!$B:$B,\"Zwischensumme Erdgas\")","v":0},{"$f":"SUMIFS('2 - Förderzeitraum'!O:O,'2 - Förderzeitraum'!$B:$B,\"Zwischensumme Erdgas\")","v":0},{"$f":"SUMIFS('2 - Förderzeitraum'!P:P,'2 - Förderzeitraum'!$B:$B,\"Zwischensumme Erdgas\")","v":0}]
[null,"Durchschnittsarbeitspreis in EUR aller Zählpunkte im Jahr 2021",null,null,null,null,null,null,{"$f":"'1 - Vergleichszeitraum'!$H$19","v":0},{"$f":"'1 - Vergleichszeitraum'!$H$19","v":0},{"$f":"'1 - Vergleichszeitraum'!$H$19","v":0},{"$f":"'1 - Vergleichszeitraum'!$H$19","v":0},{"$f":"'1 - Vergleichszeitraum'!$H$19","v":0},{"$f":"'1 - Vergleichszeitraum'!$H$19","v":0},{"$f":"'1 - Vergleichszeitraum'!$H$19","v":0},{"$f":"'1 - Vergleichszeitraum'!$H$19","v":0}]
[null,"Anstieg des Arbeitspreises in EUR",null,null,null,null,null,null,{"$f":"MAX(I55-2*I56,0)","v":0},{"$f":"MAX(J55-2*J56,0)","v":0},{"$f":"MAX(K55-2*K56,0)","v":0},{"$f":"MAX(L55-2*L56,0)","v":0},{"$f":"MAX(M55-2*M56,0)","v":0},{"$f":"MAX(N55-2*N56,0)","v":0},{"$f":"MAX(O55-2*O56,0)","v":0},{"$f":"MAX(P55-2*P56,0)","v":0},"i","Mon. Durchschnittsarbeitspreis 2022 - Doppelter Durchschnittsarbeitspreis 2021"]
[]
[null,"Erdgasverbrauch in kWh von 1. Februar bis 30. September 2022",null,null,null,null,null,null,{"$f":"SUMIFS('2 - Förderzeitraum'!I:I,'2 - Förderzeitraum'!$B:$B,\"Erdgasverbrauch in kWh von 1. Februar bis 30. September 2022\")","v":0},{"$f":"SUMIFS('2 - Förderzeitraum'!J:J,'2 - Förderzeitraum'!$B:$B,\"Erdgasverbrauch in kWh von 1. Februar bis 30. September 2022\")","v":0},{"$f":"SUMIFS('2 - Förderzeitraum'!K:K,'2 - Förderzeitraum'!$B:$B,\"Erdgasverbrauch in kWh von 1. Februar bis 30. September 2022\")","v":0},{"$f":"SUMIFS('2 - Förderzeitraum'!L:L,'2 - Förderzeitraum'!$B:$B,\"Erdgasverbrauch in kWh von 1. Februar bis 30. September 2022\")","v":0},{"$f":"SUMIFS('2 - Förderzeitraum'!M:M,'2 - Förderzeitraum'!$B:$B,\"Erdgasverbrauch in kWh von 1. Februar bis 30. September 2022\")","v":0},{"$f":"SUMIFS('2 - Förderzeitraum'!N:N,'2 - Förderzeitraum'!$B:$B,\"Erdgasverbrauch in kWh von 1. Februar bis 30. September 2022\")","v":0},{"$f":"SUMIFS('2 - Förderzeitraum'!O:O,'2 - Förderzeitraum'!$B:$B,\"Erdgasverbrauch in kWh von 1. Februar bis 30. September 2022\")","v":0},{"$f":"SUMIFS('2 - Förderzeitraum'!P:P,'2 - Förderzeitraum'!$B:$B,\"Erdgasverbrauch in kWh von 1. Februar bis 30. September 2022\")","v":0}]
[null,"Erdgasverbrauch in kWh von 1. Februar bis 30. September 2021",null,null,null,null,null,{"$f":"SUM(I60:P60)","v":0},{"$f":"SUMIFS('1 - Vergleichszeitraum'!I:I,'1 - Vergleichszeitraum'!$B:$B,\"Erdgasverbrauch in kWh von 1. Februar bis 30. September 2021\")","v":0},{"$f":"SUMIFS('1 - Vergleichszeitraum'!J:J,'1 - Vergleichszeitraum'!$B:$B,\"Erdgasverbrauch in kWh von 1. Februar bis 30. September 2021\")","v":0},{"$f":"SUMIFS('1 - Vergleichszeitraum'!K:K,'1 - Vergleichszeitraum'!$B:$B,\"Erdgasverbrauch in kWh von 1. Februar bis 30. September 2021\")","v":0},{"$f":"SUMIFS('1 - Vergleichszeitraum'!L:L,'1 - Vergleichszeitraum'!$B:$B,\"Erdgasverbrauch in kWh von 1. Februar bis 30. September 2021\")","v":0},{"$f":"SUMIFS('1 - Vergleichszeitraum'!M:M,'1 - Vergleichszeitraum'!$B:$B,\"Erdgasverbrauch in kWh von 1. Februar bis 30. September 2021\")","v":0},{"$f":"SUMIFS('1 - Vergleichszeitraum'!N:N,'1 - Vergleichszeitraum'!$B:$B,\"Erdgasverbrauch in kWh von 1. Februar bis 30. September 2021\")","v":0},{"$f":"SUMIFS('1 - Vergleichszeitraum'!O:O,'1 - Vergleichszeitraum'!$B:$B,\"Erdgasverbrauch in kWh von 1. Februar bis 30. September 2021\")","v":0},{"$f":"SUMIFS('1 - Vergleichszeitraum'!P:P,'1 - Vergleichszeitraum'!$B:$B,\"Erdgasverbrauch in kWh von 1. Februar bis 30. September 2021\")","v":0}]
[null,"Förderungsfähiger Erdgasverbrauch in kWh",null,null,null,null,null,null,{"$f":"MIN(I59,I60*0.7)","v":0},{"$f":"MIN(J59,J60*0.7)","v":0},{"$f":"MIN(K59,K60*0.7)","v":0},{"$f":"MIN(L59,L60*0.7)","v":0},{"$f":"MIN(M59,M60*0.7)","v":0},{"$f":"MIN(N59,N60*0.7)","v":0},{"$f":"MIN(O59,O60*0.7)","v":0},{"$f":"MIN(P59,P60*0.7)","v":0},"i","Max. 70 % des Vorjahresverbrauchs im betreffenden Monat"]
[]
[null,"Summe"]
[null,"Förderungsfähige Kosten (Strom) in EUR",null,null,null,null,null,null,{"$f":"I48*I52","v":0},{"$f":"J48*J52","v":0},0,0,0,0,0,0,"i","Anstieg des Arbeitspreises x Förderungsfähiger Stromverbrauch in kWh"]
[null,"Förderungsfähige Kosten (Erdgas) in EUR",null,null,null,null,null,null,{"$f":"I57*I61","v":0},{"$f":"J57*J61","v":0},0,0,0,0,{"$f":"O57*O61","v":0},0,"i","Anstieg des Arbeitspreises x Förderungsfähiger Erdgasverbrauch in kWh"]
[null,"Summe der Förderungsfähigen Kosten in EUR",null,null,null,null,null,null,{"$f":"SUM(I64:I65)","v":0},{"$f":"SUM(J64:J65)","v":0},0,0,0,0,0,0]
[null,"EBITDA in EUR",null,null,null,null,null,null,{"$f":"'3 - Unternehmensangaben'!D12","v":0},{"$f":"'3 - Unternehmensangaben'!E12","v":0},{"$f":"'3 - Unternehmensangaben'!F12","v":0},{"$f":"'3 - Unternehmensangaben'!G12","v":0},{"$f":"'3 - Unternehmensangaben'!H12","v":0},{"$f":"'3 - Unternehmensangaben'!I12","v":0},{"$f":"'3 - Unternehmensangaben'!J12","v":0},{"$f":"'3 - Unternehmensangaben'!K12","v":0}]
[]
[null,"Energiekostenzuschuss in EUR",null,null,null,null,null,null,{"$f":"IFERROR(IF(I66/(I67*-1)>=0.5,I66*0.5,0),0)","v":0},{"$f":"IFERROR(IF(J66/(J67*-1)>=0.5,J66*0.5,0),0)","v":0},0,{"$f":"IFERROR(IF(L66/(L67*-1)>=0.5,L66*0.5,0),0)","v":0},0,0,0,0]
[]
[null,"Stufe 4"]
[null,"Strom",null,null,null,null,null,null,"Feb","Mär","Apr","Mai","Jun","Jul","Aug","Sep"]
[null,"Durchschnittsarbeitspreis in EUR aller Zählpunkte im Förderungszeitraum",null,null,null,null,null,null,{"$f":"SUMIFS('2 - Förderzeitraum'!I:I,'2 - Förderzeitraum'!$B:$B,\"Zwischensumme Strom\")","v":0},{"$f":"SUMIFS('2 - Förderzeitraum'!J:J,'2 - Förderzeitraum'!$B:$B,\"Zwischensumme Strom\")","v":0},{"$f":"SUMIFS('2 - Förderzeitraum'!K:K,'2 - Förderzeitraum'!$B:$B,\"Zwischensumme Strom\")","v":0},{"$f":"SUMIFS('2 - Förderzeitraum'!L:L,'2 - Förderzeitraum'!$B:$B,\"Zwischensumme Strom\")","v":0},{"$f":"SUMIFS('2 - Förderzeitraum'!M:M,'2 - Förderzeitraum'!$B:$B,\"Zwischensumme Strom\")","v":0},{"$f":"SUMIFS('2 - Förderzeitraum'!N:N,'2 - Förderzeitraum'!$B:$B,\"Zwischensumme Strom\")","v":0},{"$f":"SUMIFS('2 - Förderzeitraum'!O:O,'2 - Förderzeitraum'!$B:$B,\"Zwischensumme Strom\")","v":0},{"$f":"SUMIFS('2 - Förderzeitraum'!P:P,'2 - Förderzeitraum'!$B:$B,\"Zwischensumme Strom\")","v":0}]
[null,"Durchschnittsarbeitspreis in EUR aller Zählpunkte im Jahr 2021",null,null,null,null,null,null,{"$f":"'1 - Vergleichszeitraum'!$H$14","v":0},{"$f":"'1 - Vergleichszeitraum'!$H$14","v":0},{"$f":"'1 - Vergleichszeitraum'!$H$14","v":0},{"$f":"'1 - Vergleichszeitraum'!$H$14","v":0},{"$f":"'1 - Vergleichszeitraum'!$H$14","v":0},{"$f":"'1 - Vergleichszeitraum'!$H$14","v":0},{"$f":"'1 - Vergleichszeitraum'!$H$14","v":0},{"$f":"'1 - Vergleichszeitraum'!$H$14","v":0}]
[null,"Anstieg des Arbeitspreises in EUR",null,null,null,null,null,null,{"$f":"MAX(I73-2*I74,0)","v":0},{"$f":"MAX(J73-2*J74,0)","v":0},{"$f":"MAX(K73-2*K74,0)","v":0},{"$f":"MAX(L73-2*L74,0)","v":0},{"$f":"MAX(M73-2*M74,0)","v":0},{"$f":"MAX(N73-2*N74,0)","v":0},{"$f":"MAX(O73-2*O74,0)","v":0},{"$f":"MAX(P73-2*P74,0)","v":0},"i","Mon. Durchschnittsarbeitspreis 2022 - Doppelter Durchschnittsarbeitspreis 2021"]
[]
[null,"Stromverbrauch in kWh von 1. Februar bis 30. September 2022",null,null,null,null,null,null,{"$f":"SUMIFS('2 - Förderzeitraum'!I:I,'2 - Förderzeitraum'!$B:$B,\"Stromverbrauch in kWh von 1. Februar bis 30. September 2022\")","v":0},{"$f":"SUMIFS('2 - Förderzeitraum'!J:J,'2 - Förderzeitraum'!$B:$B,\"Stromverbrauch in kWh von 1. Februar bis 30. September 2022\")","v":0},{"$f":"SUMIFS('2 - Förderzeitraum'!K:K,'2 - Förderzeitraum'!$B:$B,\"Stromverbrauch in kWh von 1. Februar bis 30. September 2022\")","v":0},{"$f":"SUMIFS('2 - Förderzeitraum'!L:L,'2 - Förderzeitraum'!$B:$B,\"Stromverbrauch in kWh von 1. Februar bis 30. September 2022\")","v":0},{"$f":"SUMIFS('2 - Förderzeitraum'!M:M,'2 - Förderzeitraum'!$B:$B,\"Stromverbrauch in kWh von 1. Februar bis 30. September 2022\")","v":0},{"$f":"SUMIFS('2 - Förderzeitraum'!N:N,'2 - Förderzeitraum'!$B:$B,\"Stromverbrauch in kWh von 1. Februar bis 30. September 2022\")","v":0},{"$f":"SUMIFS('2 - Förderzeitraum'!O:O,'2 - Förderzeitraum'!$B:$B,\"Stromverbrauch in kWh von 1. Februar bis 30. September 2022\")","v":0},{"$f":"SUMIFS('2 - Förderzeitraum'!P:P,'2 - Förderzeitraum'!$B:$B,\"Stromverbrauch in kWh von 1. Februar bis 30. September 2022\")","v":0}]
[null,"Stromverbrauch in kWh von 1. Februar bis 30. September 2021",null,null,null,null,null,{"$f":"SUM(I78:P78)","v":0},{"$f":"SUMIFS('1 - Vergleichszeitraum'!I:I,'1 - Vergleichszeitraum'!$B:$B,\"Stromverbrauch in kWh von 1. Februar bis 30. September 2021\")","v":0},{"$f":"SUMIFS('1 - Vergleichszeitraum'!J:J,'1 - Vergleichszeitraum'!$B:$B,\"Stromverbrauch in kWh von 1. Februar bis 30. September 2021\")","v":0},{"$f":"SUMIFS('1 - Vergleichszeitraum'!K:K,'1 - Vergleichszeitraum'!$B:$B,\"Stromverbrauch in kWh von 1. Februar bis 30. September 2021\")","v":0},{"$f":"SUMIFS('1 - Vergleichszeitraum'!L:L,'1 - Vergleichszeitraum'!$B:$B,\"Stromverbrauch in kWh von 1. Februar bis 30. September 2021\")","v":0},{"$f":"SUMIFS('1 - Vergleichszeitraum'!M:M,'1 - Vergleichszeitraum'!$B:$B,\"Stromverbrauch in kWh von 1. Februar bis 30. September 2021\")","v":0},{"$f":"SUMIFS('1 - Vergleichszeitraum'!N:N,'1 - Vergleichszeitraum'!$B:$B,\"Stromverbrauch in kWh von 1. Februar bis 30. September 2021\")","v":0},{"$f":"SUMIFS('1 - Vergleichszeitraum'!O:O,'1 - Vergleichszeitraum'!$B:$B,\"Stromverbrauch in kWh von 1. Februar bis 30. September 2021\")","v":0},{"$f":"SUMIFS('1 - Vergleichszeitraum'!P:P,'1 - Vergleichszeitraum'!$B:$B,\"Stromverbrauch in kWh von 1. Februar bis 30. September 2021\")","v":0}]
[null,"Förderungsfähiger Stromverbrauch in kWh",null,null,null,null,null,null,{"$f":"MIN(I77,I78*0.7)","v":0},{"$f":"MIN(J77,J78*0.7)","v":0},{"$f":"MIN(K77,K78*0.7)","v":0},{"$f":"MIN(L77,L78*0.7)","v":0},{"$f":"MIN(M77,M78*0.7)","v":0},{"$f":"MIN(N77,N78*0.7)","v":0},{"$f":"MIN(O77,O78*0.7)","v":0},{"$f":"MIN(P77,P78*0.7)","v":0},"i","Max. 70 % des Vorjahresverbrauchs im betreffenden Monat"]
[]
[null,"Erdgas",null,null,null,null,null,null,"Feb","Mär","Apr","Mai","Jun","Jul","Aug","Sep"]
[null,"Durchschnittsarbeitspreis in EUR aller Zählpunkte im Förderungszeitraum",null,null,null,null,null,null,{"$f":"SUMIFS('2 - Förderzeitraum'!I:I,'2 - Förderzeitraum'!$B:$B,\"Zwischensumme Erdgas\")","v":0},{"$f":"SUMIFS('2 - Förderzeitraum'!J:J,'2 - Förderzeitraum'!$B:$B,\"Zwischensumme Erdgas\")","v":0},{"$f":"SUMIFS('2 - Förderzeitraum'!K:K,'2 - Förderzeitraum'!$B:$B,\"Zwischensumme Erdgas\")","v":0},{"$f":"SUMIFS('2 - Förderzeitraum'!L:L,'2 - Förderzeitraum'!$B:$B,\"Zwischensumme Erdgas\")","v":0},{"$f":"SUMIFS('2 - Förderzeitraum'!M:M,'2 - Förderzeitraum'!$B:$B,\"Zwischensumme Erdgas\")","v":0},{"$f":"SUMIFS('2 - Förderzeitraum'!N:N,'2 - Förderzeitraum'!$B:$B,\"Zwischensumme Erdgas\")","v":0},{"$f":"SUMIFS('2 - Förderzeitraum'!O:O,'2 - Förderzeitraum'!$B:$B,\"Zwischensumme Erdgas\")","v":0},{"$f":"SUMIFS('2 - Förderzeitraum'!P:P,'2 - Förderzeitraum'!$B:$B,\"Zwischensumme Erdgas\")","v":0}]
[null,"Durchschnittsarbeitspreis in EUR aller Zählpunkte im Jahr 2021",null,null,null,null,null,null,{"$f":"'1 - Vergleichszeitraum'!$H$19","v":0},{"$f":"'1 - Vergleichszeitraum'!$H$19","v":0},{"$f":"'1 - Vergleichszeitraum'!$H$19","v":0},{"$f":"'1 - Vergleichszeitraum'!$H$19","v":0},{"$f":"'1 - Vergleichszeitraum'!$H$19","v":0},{"$f":"'1 - Vergleichszeitraum'!$H$19","v":0},{"$f":"'1 - Vergleichszeitraum'!$H$19","v":0},{"$f":"'1 - Vergleichszeitraum'!$H$19","v":0}]
[null,"Anstieg des Arbeitspreises in EUR",null,null,null,null,null,null,{"$f":"MAX(I82-2*I83,0)","v":0},{"$f":"MAX(J82-2*J83,0)","v":0},{"$f":"MAX(K82-2*K83,0)","v":0},{"$f":"MAX(L82-2*L83,0)","v":0},{"$f":"MAX(M82-2*M83,0)","v":0},{"$f":"MAX(N82-2*N83,0)","v":0},{"$f":"MAX(O82-2*O83,0)","v":0},{"$f":"MAX(P82-2*P83,0)","v":0},"i","Mon. Durchschnittsarbeitspreis 2022 - Doppelter Durchschnittsarbeitspreis 2021"]
[]
[null,"Erdgasverbrauch in kWh von 1. Februar bis 30. September 2022",null,null,null,null,null,null,{"$f":"SUMIFS('2 - Förderzeitraum'!I:I,'2 - Förderzeitraum'!$B:$B,\"Erdgasverbrauch in kWh von 1. Februar bis 30. September 2022\")","v":0},{"$f":"SUMIFS('2 - Förderzeitraum'!J:J,'2 - Förderzeitraum'!$B:$B,\"Erdgasverbrauch in kWh von 1. Februar bis 30. September 2022\")","v":0},{"$f":"SUMIFS('2 - Förderzeitraum'!K:K,'2 - Förderzeitraum'!$B:$B,\"Erdgasverbrauch in kWh von 1. Februar bis 30. September 2022\")","v":0},{"$f":"SUMIFS('2 - Förderzeitraum'!L:L,'2 - Förderzeitraum'!$B:$B,\"Erdgasverbrauch in kWh von 1. Februar bis 30. September 2022\")","v":0},{"$f":"SUMIFS('2 - Förderzeitraum'!M:M,'2 - Förderzeitraum'!$B:$B,\"Erdgasverbrauch in kWh von 1. Februar bis 30. September 2022\")","v":0},{"$f":"SUMIFS('2 - Förderzeitraum'!N:N,'2 - Förderzeitraum'!$B:$B,\"Erdgasverbrauch in kWh von 1. Februar bis 30. September 2022\")","v":0},{"$f":"SUMIFS('2 - Förderzeitraum'!O:O,'2 - Förderzeitraum'!$B:$B,\"Erdgasverbrauch in kWh von 1. Februar bis 30. September 2022\")","v":0},{"$f":"SUMIFS('2 - Förderzeitraum'!P:P,'2 - Förderzeitraum'!$B:$B,\"Erdgasverbrauch in kWh von 1. Februar bis 30. September 2022\")","v":0}]
[null,"Erdgasverbrauch in kWh von 1. Februar bis 30. September 2021",null,null,null,null,null,{"$f":"SUM(I87:P87)","v":0},{"$f":"SUMIFS('1 - Vergleichszeitraum'!I:I,'1 - Vergleichszeitraum'!$B:$B,\"Erdgasverbrauch in kWh von 1. Februar bis 30. September 2021\")","v":0},{"$f":"SUMIFS('1 - Vergleichszeitraum'!J:J,'1 - Vergleichszeitraum'!$B:$B,\"Erdgasverbrauch in kWh von 1. Februar bis 30. September 2021\")","v":0},{"$f":"SUMIFS('1 - Vergleichszeitraum'!K:K,'1 - Vergleichszeitraum'!$B:$B,\"Erdgasverbrauch in kWh von 1. Februar bis 30. September 2021\")","v":0},{"$f":"SUMIFS('1 - Vergleichszeitraum'!L:L,'1 - Vergleichszeitraum'!$B:$B,\"Erdgasverbrauch in kWh von 1. Februar bis 30. September 2021\")","v":0},{"$f":"SUMIFS('1 - Vergleichszeitraum'!M:M,'1 - Vergleichszeitraum'!$B:$B,\"Erdgasverbrauch in kWh von 1. Februar bis 30. September 2021\")","v":0},{"$f":"SUMIFS('1 - Vergleichszeitraum'!N:N,'1 - Vergleichszeitraum'!$B:$B,\"Erdgasverbrauch in kWh von 1. Februar bis 30. September 2021\")","v":0},{"$f":"SUMIFS('1 - Vergleichszeitraum'!O:O,'1 - Vergleichszeitraum'!$B:$B,\"Erdgasverbrauch in kWh von 1. Februar bis 30. September 2021\")","v":0},{"$f":"SUMIFS('1 - Vergleichszeitraum'!P:P,'1 - Vergleichszeitraum'!$B:$B,\"Erdgasverbrauch in kWh von 1. Februar bis 30. September 2021\")","v":0}]
[null,"Förderungsfähiger Erdgasverbrauch in kWh",null,null,null,null,null,null,{"$f":"MIN(I86,I87*0.7)","v":0},{"$f":"MIN(J86,J87*0.7)","v":0},{"$f":"MIN(K86,K87*0.7)","v":0},{"$f":"MIN(L86,L87*0.7)","v":0},{"$f":"MIN(M86,M87*0.7)","v":0},{"$f":"MIN(N86,N87*0.7)","v":0},{"$f":"MIN(O86,O87*0.7)","v":0},{"$f":"MIN(P86,P87*0.7)","v":0},"i","Max. 70 % des Vorjahresverbrauchs im betreffenden Monat"]
[]
[null,"Summe"]
[null,"Förderungsfähige Kosten (Strom) in EUR",null,null,null,null,null,null,{"$f":"I75*I79","v":0},{"$f":"J75*J79","v":0},0,0,0,0,0,0,"i","Anstieg des Arbeitspreises x Förderungsfähiger Stromverbrauch in kWh"]
[null,"Förderungsfähige Kosten (Erdgas) in EUR",null,null,null,null,null,null,{"$f":"I84*I88","v":0},{"$f":"J84*J88","v":0},0,0,0,0,0,0,"i","Anstieg des Arbeitspreises x Förderungsfähiger Erdgasverbrauch in kWh"]
[null,"Summe der Förderungsfähigen Kosten in EUR",null,null,null,null,null,null,{"$f":"SUM(I91:I92)","v":0},{"$f":"SUM(J91:J92)","v":0},{"$f":"SUM(K91:K92)","v":0},{"$f":"SUM(L91:L92)","v":0},{"$f":"SUM(M91:M92)","v":0},{"$f":"SUM(N91:N92)","v":0},{"$f":"SUM(O91:O92)","v":0},{"$f":"SUM(P91:P92)","v":0}]
[null,"EBITDA in EUR",null,null,null,null,null,null,{"$f":"'3 - Unternehmensangaben'!D12","v":0},{"$f":"'3 - Unternehmensangaben'!E12","v":0},{"$f":"'3 - Unternehmensangaben'!F12","v":0},{"$f":"'3 - Unternehmensangaben'!G12","v":0},{"$f":"'3 - Unternehmensangaben'!H12","v":0},{"$f":"'3 - Unternehmensangaben'!I12","v":0},{"$f":"'3 - Unternehmensangaben'!J12","v":0},{"$f":"'3 - Unternehmensangaben'!K12","v":0}]
[]
[null,"Energiekostenzuschuss in EUR",null,null,null,null,null,null,{"$f":"IFERROR(IF(I93/(I94*-1)>=0.5,I93*0.7,0),0)","v":0},{"$f":"IFERROR(IF(J93/(J94*-1)>=0.5,J93*0.7,0),0)","v":0},0,0,0,0,0,0]

{"sheet":"1 - Vergleichszeitraum","index":1,"n_rows":37,"n_cols":24,"rows_kept":37,"cut":false,"hidden":false,"merged":[[11,10,12,22],[16,10,17,22]]}
[]
[null,"Energiekostenzuschuss"]
[null,"Ermitteln Sie in wenigen Schritte Ihren Zuschuss in der Berechnungsstufe (Stufe 2 bis Stufe 4)"]
[]
[]
[null,"Schritt 1: Angaben zur Vergleichsperiode 2021"]
[]
[null,"Um die Preissteigerungen berechnen zu können, benötigen wir im ersten Schritt Angaben zur Vergleichsperiode 2021."]
[]
[]
[null,"Jahresangaben Strom"]
[null,"Summe der Nettorechnungsbeträge aller Zählpunkte",null,null,null,null,null,null,"EUR","i","Der Nettorechnungsbetrag bezeichnet die Kosten für die verbrauchten Kilowattstunden (kWh) Strom (exkl. Steuern, Abgaben, Netzentgelte, etc.) im Zeitraum 1. Jänner bis 31. Dezember 2021."]
[null,"Stromverbrauch aller Zählpunkte in kWh im Gesamtjahr",null,null,null,null,null,null,"kWh"]
[null,"Errechneter Durchschnittsarbeitspreis aller Zählpunkte",null,null,null,null,null,{"$f":"IFERROR(H12/H13,0)","v":0},"EUR"]
[]
[null,"Jahresangaben Erdgas"]
[null,"Summe der Nettorechnungsbeträge aller Zählpunkte",null,null,null,null,null,null,"EUR","i","Der Nettorechnungsbetrag bezeichnet die Kosten für die verbrauchten Kilowattstunden (kWh) Erdgas (exkl. Steuern, Abgaben, Netzentgelte, etc.) im Zeitraum 1. Jänner bis 31. Dezember 2021."]
[null,"Stromverbrauch aller Zählpunkte in kWh im Gesamtjahr",null,null,null,null,null,null,"kWh"]
[null,"Errechneter Durchschnittsarbeitspreis aller Zählpunkte",null,null,null,null,null,{"$f":"IFERROR(H17/H18,0)","v":0},"EUR"]
[]
[]
[null,"Monatsangaben zu den einzelnen Zählpunkten"]
[]
[null,"Detaillierte Verbrauchsangaben aus dem Jahr 2021 sind erforderlich, da pro Monat lediglich 70 % des mengenmäßigen Vorjahresverbrauchs gefördert werden können."]
[null,"Mehrere Zählpunkte mit identem Tarif können mit einer fiktiven Zählpunktnummer zusammengefasst werden (beispielsweise 1111 für Strom und 2222 für Erdgas)."]
[]
[]
[null,"Zählpunkt",null,null,null,null,null,null,"2021-02-01","2021-03-01","2021-04-01","2021-05-01","2021-06-01","2021-07-01","2021-08-01","2021-09-01"]
[null,"Zählpunktnummer (die letzten vier Stellen)",null,null,null,null,null,null,null,null,null,null,null,null,null,null,"i","Bitte geben Sie nur die letzten vier Stellen Ihrer Zählpunktnummer an.",null,null,null,null,null,{"$f":"H30","v":"Strom"}]
[null,"Energieart",null,null,null,null,null,"Strom",null,null,null,null,null,null,null,null,"i","Bitte geben Sie die jeweilige Energieart an."]
[null,{"$f":"IF(H30=\"Erdgas\",\"Erdgasverbrauch in kWh von 1. Februar bis 30. September 2021\",\"Stromverbrauch in kWh von 1. Februar bis 30. September 2021\")","v":"Stromverbrauch in kWh von 1. Februar bis 30. September 2021"},null,null,null,null,null,{"$f":"SUM(I31:P31)","v":0},null,null,null,null,null,null,null,null,"i","Bitte ergänzen Sie die monatlichen Verbrauchswerte gem. Lastprofilzähler."]
[]
[]
[null,"Zählpunkt",null,null,null,null,null,null,"2021-02-01","2021-03-01","2021-04-01","2021-05-01","2021-06-01","2021-07-01","2021-08-01","2021-09-01"]
[null,"Zählpunktnummer (die letzten vier Stellen)",null,null,null,null,null,null,null,null,null,null,null,null,null,null,"i","Bitte geben Sie nur die letzten vier Stellen Ihrer Zählpunktnummer an.",null,null,null,null,null,{"$f":"H36","v":0}]
[null,"Energieart",null,null,null,null,null,null,null,null,null,null,null,null,null,null,"i","Bitte geben Sie die jeweilige Energieart an."]
[null,{"$f":"IF(H36=\"Erdgas\",\"Erdgasverbrauch in kWh von 1. Februar bis 30. September 2021\",\"Stromverbrauch in kWh von 1. Februar bis 30. September 2021\")","v":"Stromverbrauch in kWh von 1. Februar bis 30. September 2021"},null,null,null,null,null,{"$f":"SUM(I37:P37)","v":0},null,null,null,null,null,null,null,null,"i","Bitte ergänzen Sie die monatlichen Verbrauchswerte gem. Lastprofilzähler."]

{"sheet":"2 - Förderzeitraum","index":2,"n_rows":25,"n_cols":40,"rows_kept":25,"cut":false,"hidden":false,"merged":[]}
[]
[null,"Energiekostenzuschuss"]
[null,"Ermitteln Sie in wenigen Schritte Ihren Zuschuss in der Berechnungsstufe (Stufe 2 bis Stufe 4)"]
[]
[]
[null,"Schritt 2: Angaben zum Förderungszeitraum"]
[]
[null,"Im zweiten Schritt ersuchen wir Sie um Angaben für den Förderungszeitraum 1. Februar bis 30. September 2022."]
[null,"Mehrere Zählpunkte mit identem Tarif können mit einer fiktiven Zählpunktnummer zusammengefasst werden (beispielsweise 1111 für Strom und 2222 für Erdgas).",null,null,null,null,null,null,null,null,null,null,null,null,null,null,null,null,null,null,null,null,null,null,null,"Endsumme Strom",null,null,null,null,null,null,{"$f":"IFERROR(SUMIFS(I:I,$B:$B,\"Stromverbrauch in kWh*\"),\"\")","v":0},0,0,0,0,0,0,0]
[null,null,null,null,null,null,null,null,null,null,null,null,null,null,null,null,null,null,null,null,null,null,null,null,null,"Endsumme Erdgas",null,null,null,null,null,null,{"$f":"IFERROR(SUMIFS(I:I,$B:$B,\"Erdgasverbrauch in kWh*\"),\"\")","v":0},0,0,0,0,0,0,0]
[]
[]
[null,"Zählpunkt",null,null,null,null,null,null,"2022-02-01","2022-03-01","2022-04-01","2022-05-01","2022-06-01","2022-07-01","2022-08-01","2022-09-01"]
[null,"Zählpunktnummer (die letzten vier Stellen)",null,null,null,null,null,null,null,null,null,null,null,null,null,null,"i","Bitte geben Sie nur die letzten vier Stellen Ihrer Zählpunktnummer an."]
[null,"Energieart",null,null,null,null,null,{"$f":"IFERROR(VLOOKUP(H14,'1 - Vergleichszeitraum'!H:X,17,FALSE),\"\")","v":0},null,null,null,null,null,null,null,null,"i","Bitte geben Sie die jeweilige Energieart an."]
[null,{"$f":"IF(H15=\"Erdgas\",\"Arbeitspreis pro kWh Erdgas in EUR\",\"Arbeitspreis pro kWh Strom in EUR\")","v":"Arbeitspreis pro kWh Strom in EUR"},null,null,null,null,null,null,null,null,null,null,null,null,null,null,"i",{"$f":"IF(H15=\"Erdgas\",\"Erdgaskosten exkl. Steuern, Abgaben, Netzentgelte, etc.\",\"Stromkosten exkl. Steuern, Abgaben, Netzentgelte, etc.\")","v":"Stromkosten exkl. Steuern, Abgaben, Netzentgelte, etc."}]
[null,{"$f":"IF(H15=\"Erdgas\",\"Erdgasverbrauch in kWh von 1. Februar bis 30. September 2022\",\"Stromverbrauch in kWh von 1. Februar bis 30. September 2022\")","v":"Stromverbrauch in kWh von 1. Februar bis 30. September 2022"},null,null,null,null,null,null,null,null,null,null,null,null,null,null,"i","Bitte ergänzen Sie die monatlichen Verbrauchswerte gem. Lastprofilzähler."]
[null,{"$f":"IF(H15=\"Erdgas\",\"Zwischensumme Erdgas\",IF(H15=\"Strom\",\"Zwischensumme Strom\",\"\"))","v":""},null,null,null,null,null,null,{"$f":"IFERROR(I16*I17/IF($B18=\"Zwischensumme Strom\",'2 - Förderzeitraum'!AG$9,IF($B18=\"Zwischensumme Erdgas\",'2 - Förderzeitraum'!AG$10,\"\")),\"\")","v":""},{"$f":"IFERROR(J16*J17/IF($B18=\"Zwischensumme Strom\",'2 - Förderzeitraum'!AH$9,IF($B18=\"Zwischensumme Erdgas\",'2 - Förderzeitraum'!AH$10,\"\")),\"\")","v":""},{"$f":"IFERROR(K16*K17/IF($B18=\"Zwischensumme Strom\",'2 - Förderzeitraum'!AI$9,IF($B18=\"Zwischensumme Erdgas\",'2 - Förderzeitraum'!AI$10,\"\")),\"\")","v":""},{"$f":"IFERROR(L16*L17/IF($B18=\"Zwischensumme Strom\",'2 - Förderzeitraum'!AJ$9,IF($B18=\"Zwischensumme Erdgas\",'2 - Förderzeitraum'!AJ$10,\"\")),\"\")","v":""},{"$f":"IFERROR(M16*M17/IF($B18=\"Zwischensumme Strom\",'2 - Förderzeitraum'!AK$9,IF($B18=\"Zwischensumme Erdgas\",'2 - Förderzeitraum'!AK$10,\"\")),\"\")","v":""},{"$f":"IFERROR(N16*N17/IF($B18=\"Zwischensumme Strom\",'2 - Förderzeitraum'!AL$9,IF($B18=\"Zwischensumme Erdgas\",'2 - Förderzeitraum'!AL$10,\"\")),\"\")","v":""},{"$f":"IFERROR(O16*O17/IF($B18=\"Zwischensumme Strom\",'2 - Förderzeitraum'!AM$9,IF($B18=\"Zwischensumme Erdgas\",'2 - Förderzeitraum'!AM$10,\"\")),\"\")","v":""},{"$f":"IFERROR(P16*P17/IF($B18=\"Zwischensumme Strom\",'2 - Förderzeitraum'!AN$9,IF($B18=\"Zwischensumme Erdgas\",'2 - Förderzeitraum'!AN$10,\"\")),\"\")","v":""}]
[]
[null,"Zählpunkt",null,null,null,null,null,null,"2022-02-01","2022-03-01","2022-04-01","2022-05-01","2022-06-01","2022-07-01","2022-08-01","2022-09-01"]
[null,"Zählpunktnummer (die letzten vier Stellen)",null,null,null,null,null,null,null,null,null,null,null,null,null,null,"i","Bitte geben Sie nur die letzten vier Stellen Ihrer Zählpunktnummer an."]
[null,"Energieart",null,null,null,null,null,{"$f":"IFERROR(VLOOKUP(H21,'1 - Vergleichszeitraum'!H:X,17,FALSE),\"\")","v":0},null,null,null,null,null,null,null,null,"i","Bitte geben Sie die jeweilige Energieart an."]
[null,{"$f":"IF(H22=\"Erdgas\",\"Arbeitspreis pro kWh Erdgas in EUR\",\"Arbeitspreis pro kWh Strom in EUR\")","v":"Arbeitspreis pro kWh Strom in EUR"},null,null,null,null,null,null,null,null,null,null,null,null,null,null,"i",{"$f":"IF(H22=\"Erdgas\",\"Erdgaskosten exkl. Steuern, Abgaben, Netzentgelte, etc.\",\"Stromkosten exkl. Steuern, Abgaben, Netzentgelte, etc.\")","v":"Stromkosten exkl. Steuern, Abgaben, Netzentgelte, etc."}]
[null,{"$f":"IF(H22=\"Erdgas\",\"Erdgasverbrauch in kWh von 1. Februar bis 30. September 2022\",\"Stromverbrauch in kWh von 1. Februar bis 30. September 2022\")","v":"Stromverbrauch in kWh von 1. Februar bis 30. September 2022"},null,null,null,null,null,null,null,null,null,null,null,null,null,null,"i","Bitte ergänzen Sie die monatlichen Verbrauchswerte gem. Lastprofilzähler."]
[null,{"$f":"IF(H22=\"Erdgas\",\"Zwischensumme Erdgas\",IF(H22=\"Strom\",\"Zwischensumme Strom\",\"\"))","v":""},null,null,null,null,null,null,{"$f":"IFERROR(I23*I24/IF($B25=\"Zwischensumme Strom\",'2 - Förderzeitraum'!AG$9,IF($B25=\"Zwischensumme Erdgas\",'2 - Förderzeitraum'!AG$10,\"\")),\"\")","v":""},{"$f":"IFERROR(J23*J24/IF($B25=\"Zwischensumme Strom\",'2 - Förderzeitraum'!AH$9,IF($B25=\"Zwischensumme Erdgas\",'2 - Förderzeitraum'!AH$10,\"\")),\"\")","v":""},{"$f":"IFERROR(K23*K24/IF($B25=\"Zwischensumme Strom\",'2 - Förderzeitraum'!AI$9,IF($B25=\"Zwischensumme Erdgas\",'2 - Förderzeitraum'!AI$10,\"\")),\"\")","v":""},{"$f":"IFERROR(L23*L24/IF($B25=\"Zwischensumme Strom\",'2 - Förderzeitraum'!AJ$9,IF($B25=\"Zwischensumme Erdgas\",'2 - Förderzeitraum'!AJ$10,\"\")),\"\")","v":""},{"$f":"IFERROR(M23*M24/IF($B25=\"Zwischensumme Strom\",'2 - Förderzeitraum'!AK$9,IF($B25=\"Zwischensumme Erdgas\",'2 - Förderzeitraum'!AK$10,\"\")),\"\")","v":""},{"$f":"IFERROR(N23*N24/IF($B25=\"Zwischensumme Strom\",'2 - Förderzeitraum'!AL$9,IF($B25=\"Zwischensumme Erdgas\",'2 - Förderzeitraum'!AL$10,\"\")),\"\")","v":""},{"$f":"IFERROR(O23*O24/IF($B25=\"Zwischensumme Strom\",'2 - Förderzeitraum'!AM$9,IF($B25=\"Zwischensumme Erdgas\",'2 - Förderzeitraum'!AM$10,\"\")),\"\")","v":""},{"$f":"IFERROR(P23*P24/IF($B25=\"Zwischensumme Strom\",'2 - Förderzeitraum'!AN$9,IF($B25=\"Zwischensumme Erdgas\",'2 - Förderzeitraum'!AN$10,\"\")),\"\")","v":""}]

{"sheet":"3 - Unternehmensangaben","index":3,"n_rows":43,"n_cols":13,"rows_kept":43,"cut":false,"hidden":true,"merged":[[16,1,16,2]]}
[]
[null,"Energiekostenzuschuss"]
[null,"Ermitteln Sie in wenigen Schritte Ihren Zuschuss in der Berechnungsstufe (Stufe 2 bis Stufe 4)"]
[]
[]
[null,"Schritt 3: Angaben zu Ihrem Unternehmen"]
[]
[null,"Im dritten Schritt ersuchen wir Sie um Angaben zu Ihrem Unternehmen."]
[]
[]
[null,"EBITDA in EUR",null,"2022-02-01","2022-03-01","2022-04-01","2022-05-01","2022-06-01","2022-07-01","2022-08-01","2022-09-01"]
[null,"Betriebsergebnis in EUR",null,null,null,null,null,null,null,null,null,"i","Ergebnis vor Zinsen, Steuern und Abschreibungen ohne einmalige Wertminderungen"]
[]
[null,"Branchenzugehörigkeit"]
[null,"Ist Ihr Unternehmen in einer der unten aufgelisteten Branchen tätig?"]
[]
[null,"ÖNACE",null,"Branchenbezeichnung"]
[null,null,"0729","Sonstiger NE-Metallerzbergbau"]
[null,null,1310,"Spinnstoffaufbereitung und Spinnerei"]
[null,null,1395,"Herstellung von Vliesstoff und Erzeugnissen daraus (ohne Bekleidung)"]
[null,null,1411,"Herstellung von Lederbekleidung"]
[null,null,1621,"Herstellung von Furnier-, Sperrholz-, Holzfaser- und Holzspanplatten"]
[null,null,1711,"Herstellung von Holz- und Zellstoff"]
[null,null,1712,"Herstellung von Papier, Karton und Pappe"]
[null,null,1920,"Mineralölverarbeitung"]
[null,null,2011,"Herstellung von Industriegasen (ausschließlich: Wasserstoff, Anorganische Sauerstoffverbindungen der Nichtmetalle)"]
[null,null,2013,"Herstellung von sonstigen anorganischen Grundstoffen und Chemikalien"]
[null,null,2014,"Herstellung von sonstigen organischen Grundstoffen und Chemikalien (ausschließlich: Cyclohexan, Benzol, Toluol, o-Xylol, p-Xylol, m-Xylol und Xylol-Isomerengemische, Styrol, Ethylbenzol, Cumol, Andere cyclische Kohlenwasserstoffe, Ethylenglykol (Ethandiol), 2,2’-Oxydiethanol (Diethylenglykol, Digol), Oxiran (Ethylenoxid), Benzol, Toluol und Xylol, Naphthalin und andere Mischungen aromatischer Kohlenwasserstoffe)"]
[null,null,2015,"Herstellung von Düngemitteln und Stickstoffverbindungen"]
[null,null,2016,"Herstellung von Kunststoffen in Primärformen"]
[null,null,2017,"Herstellung von synthetischem Kautschuk in Primärformen"]
[null,null,2060,"Herstellung von Chemiefasern"]
[null,null,2311,"Herstellung von Flachglas"]
[null,null,2313,"Herstellung von Hohlglas"]
[null,null,2314,"Herstellung von Glasfasern und Waren daraus"]
[null,null,2331,"Herstellung von keramischen Wand- und Bodenfliesen und -platten"]
[null,null,2399,"Herstellung von sonstigen Erzeugnissen aus nicht metallischen Mineralien a.n.g. (ausschließlich: Hüttenwolle, Steinwolle und ähnliche mineralische Wollen, auch\nmiteinander gemischt, lose, in Platten oder in Rollen)"]
[null,null,2410,"Erzeugung von Roheisen, Stahl und Ferrolegierungen"]
[null,null,2442,"Erzeugung und erste Bearbeitung von Aluminium"]
[null,null,2443,"Erzeugung und erste Bearbeitung von Blei, Zink und Zinn"]
[null,null,2444,"Erzeugung und erste Bearbeitung von Kupfer"]
[null,null,2445,"Erzeugung und erste Bearbeitung von sonstigen NE-Metallen"]
[null,null,2451,"Eisengießereien"]

{"sheet":"Import","index":4,"n_rows":59,"n_cols":5,"rows_kept":59,"cut":false,"hidden":true,"merged":[]}
["Field","Value",null,"Validation","Value"]
["AceDurchschnittspreisstromvergleich",{"$f":"'1 - Vergleichszeitraum'!H14","v":0},null,"Berechnungsart",100000001]
["Monatsangaben.100000000.2.AceDurchschnittspreisproeinheit",{"$f":"Übersicht!I23","v":0},null,"Kontrollfeld",{"$f":"IF(AND(_xlfn.ISFORMULA(Übersicht!I23:P24),_xlfn.ISFORMULA(Übersicht!I27:P28),_xlfn.ISFORMULA(Übersicht!I32:P33),_xlfn.ISFORMULA(Übersicht!I36:P37)),\"OK\",\"NOK\")","v":"OK"}]
["Monatsangaben.100000000.3.AceDurchschnittspreisproeinheit",{"$f":"Übersicht!J23","v":0},null,"Version",{"$f":"Übersicht!C4","v":"1.0.0"}]
["Monatsangaben.100000000.4.AceDurchschnittspreisproeinheit",{"$f":"Übersicht!K23","v":0}]
["Monatsangaben.100000000.5.AceDurchschnittspreisproeinheit",{"$f":"Übersicht!L23","v":0}]
["Monatsangaben.100000000.6.AceDurchschnittspreisproeinheit",{"$f":"Übersicht!M23","v":0}]
["Monatsangaben.100000000.7.AceDurchschnittspreisproeinheit",{"$f":"Übersicht!N23","v":0}]
["Monatsangaben.100000000.8.AceDurchschnittspreisproeinheit",{"$f":"Übersicht!O23","v":0}]
["Monatsangaben.100000000.9.AceDurchschnittspreisproeinheit",{"$f":"Übersicht!P23","v":0}]
["Monatsangaben.100000000.2.AceVerbrauchvergleich",{"$f":"Übersicht!I28","v":0}]
["Monatsangaben.100000000.3.AceVerbrauchvergleich",{"$f":"Übersicht!J28","v":0}]
["Monatsangaben.100000000.4.AceVerbrauchvergleich",{"$f":"Übersicht!K28","v":0}]
["Monatsangaben.100000000.5.AceVerbrauchvergleich",{"$f":"Übersicht!L28","v":0}]
["Monatsangaben.100000000.6.AceVerbrauchvergleich",{"$f":"Übersicht!M28","v":0}]
["Monatsangaben.100000000.7.AceVerbrauchvergleich",{"$f":"Übersicht!N28","v":0}]
["Monatsangaben.100000000.8.AceVerbrauchvergleich",{"$f":"Übersicht!O28","v":0}]
["Monatsangaben.100000000.9.AceVerbrauchvergleich",{"$f":"Übersicht!P28","v":0}]
["Monatsangaben.100000000.2.AceVerbrauch",{"$f":"Übersicht!I27","v":0}]
["Monatsangaben.100000000.3.AceVerbrauch",{"$f":"Übersicht!J27","v":0}]
["Monatsangaben.100000000.4.AceVerbrauch",{"$f":"Übersicht!K27","v":0}]
["Monatsangaben.100000000.5.AceVerbrauch",{"$f":"Übersicht!L27","v":0}]
["Monatsangaben.100000000.6.AceVerbrauch",{"$f":"Übersicht!M27","v":0}]
["Monatsangaben.100000000.7.AceVerbrauch",{"$f":"Übersicht!N27","v":0}]
["Monatsangaben.100000000.8.AceVerbrauch",{"$f":"Übersicht!O27","v":0}]
["Monatsangaben.100000000.9.AceVerbrauch",{"$f":"Übersicht!P27","v":0}]
["AceDurchschnittspreisgasvergleich",{"$f":"'1 - Vergleichszeitraum'!H19","v":0}]
["Monatsangaben.100000001.2.AceDurchschnittspreisproeinheit",{"$f":"Übersicht!I32","v":0}]
["Monatsangaben.100000001.3.AceDurchschnittspreisproeinheit",{"$f":"Übersicht!J32","v":0}]
["Monatsangaben.100000001.4.AceDurchschnittspreisproeinheit",{"$f":"Übersicht!K32","v":0}]
["Monatsangaben.100000001.5.AceDurchschnittspreisproeinheit",{"$f":"Übersicht!L32","v":0}]
["Monatsangaben.100000001.6.AceDurchschnittspreisproeinheit",{"$f":"Übersicht!M32","v":0}]
["Monatsangaben.100000001.7.AceDurchschnittspreisproeinheit",{"$f":"Übersicht!N32","v":0}]
["Monatsangaben.100000001.8.AceDurchschnittspreisproeinheit",{"$f":"Übersicht!O32","v":0}]
["Monatsangaben.100000001.9.AceDurchschnittspreisproeinheit",{"$f":"Übersicht!P32","v":0}]
["Monatsangaben.100000001.2.AceVerbrauchvergleich",{"$f":"Übersicht!I37","v":0}]
["Monatsangaben.100000001.3.AceVerbrauchvergleich",{"$f":"Übersicht!J37","v":0}]
["Monatsangaben.100000001.4.AceVerbrauchvergleich",{"$f":"Übersicht!K37","v":0}]
["Monatsangaben.100000001.5.AceVerbrauchvergleich",{"$f":"Übersicht!L37","v":0}]
["Monatsangaben.100000001.6.AceVerbrauchvergleich",{"$f":"Übersicht!M37","v":0}]
["Monatsangaben.100000001.7.AceVerbrauchvergleich",{"$f":"Übersicht!N37","v":0}]
["Monatsangaben.100000001.8.AceVerbrauchvergleich",{"$f":"Übersicht!O37","v":0}]
["Monatsangaben.100000001.9.AceVerbrauchvergleich",{"$f":"Übersicht!P37","v":0}]
["Monatsangaben.100000001.2.AceVerbrauch",{"$f":"Übersicht!I36","v":0}]
["Monatsangaben.100000001.3.AceVerbrauch",{"$f":"Übersicht!J36","v":0}]
["Monatsangaben.100000001.4.AceVerbrauch",{"$f":"Übersicht!K36","v":0}]
["Monatsangaben.100000001.5.AceVerbrauch",{"$f":"Übersicht!L36","v":0}]
["Monatsangaben.100000001.6.AceVerbrauch",{"$f":"Übersicht!M36","v":0}]
["Monatsangaben.100000001.7.AceVerbrauch",{"$f":"Übersicht!N36","v":0}]
["Monatsangaben.100000001.8.AceVerbrauch",{"$f":"Übersicht!O36","v":0}]
["Monatsangaben.100000001.9.AceVerbrauch",{"$f":"Übersicht!P36","v":0}]
["Verlustangaben.2.AceEbitda",{"$f":"'3 - Unternehmensangaben'!D12","v":0}]
["Verlustangaben.3.AceEbitda",{"$f":"'3 - Unternehmensangaben'!E12","v":0}]
["Verlustangaben.4.AceEbitda",{"$f":"'3 - Unternehmensangaben'!F12","v":0}]
["Verlustangaben.5.AceEbitda",{"$f":"'3 - Unternehmensangaben'!G12","v":0}]
["Verlustangaben.6.AceEbitda",{"$f":"'3 - Unternehmensangaben'!H12","v":0}]
["Verlustangaben.7.AceEbitda",{"$f":"'3 - Unternehmensangaben'!I12","v":0}]
["Verlustangaben.8.AceEbitda",{"$f":"'3 - Unternehmensangaben'!J12","v":0}]
["Verlustangaben.9.AceEbitda",{"$f":"'3 - Unternehmensangaben'!K12","v":0}]

{"sheet":"Zählpunkte Schritt 1","index":5,"n_rows":5,"n_cols":24,"rows_kept":5,"cut":false,"hidden":true,"merged":[]}
[]
[null,"Zählpunkt",null,null,null,null,null,null,"2021-02-01","2021-03-01","2021-04-01","2021-05-01","2021-06-01","2021-07-01","2021-08-01","2021-09-01"]
[null,"Zählpunktnummer (die letzten vier Stellen)",null,null,null,null,null,null,null,null,null,null,null,null,null,null,"i","Bitte geben Sie nur die letzten vier Stellen Ihrer Zählpunktnummer an.",null,null,null,null,null,{"$f":"H4","v":0}]
[null,"Energieart",null,null,null,null,null,null,null,null,null,null,null,null,null,null,"i","Bitte geben Sie die jeweilige Energieart an."]
[null,{"$f":"IF(H4=\"Erdgas\",\"Erdgasverbrauch in kWh von 1. Februar bis 30. September 2021\",\"Stromverbrauch in kWh von 1. Februar bis 30. September 2021\")","v":"Stromverbrauch in kWh von 1. Februar bis 30. September 2021"},null,null,null,null,null,{"$f":"SUM(I5:P5)","v":0},null,null,null,null,null,null,null,null,"i","Bitte ergänzen Sie die monatlichen Verbrauchswerte gem. Lastprofilzähler."]

{"sheet":"Zählpunkte Schritt 2","index":6,"n_rows":7,"n_cols":18,"rows_kept":7,"cut":false,"hidden":true,"merged":[]}
[]
[null,"Zählpunkt",null,null,null,null,null,null,"2022-02-01","2022-03-01","2022-04-01","2022-05-01","2022-06-01","2022-07-01","2022-08-01","2022-09-01"]
[null,"Zählpunktnummer (die letzten vier Stellen)",null,null,null,null,null,null,null,null,null,null,null,null,null,null,"i","Bitte geben Sie nur die letzten vier Stellen Ihrer Zählpunktnummer an."]
[null,"Energieart",null,null,null,null,null,{"$f":"IFERROR(VLOOKUP(H3,'1 - Vergleichszeitraum'!H:X,17,FALSE),\"\")","v":0},null,null,null,null,null,null,null,null,"i","Bitte geben Sie die jeweilige Energieart an."]
[null,{"$f":"IF(H4=\"Erdgas\",\"Arbeitspreis pro kWh Erdgas in EUR\",\"Arbeitspreis pro kWh Strom in EUR\")","v":"Arbeitspreis pro kWh Strom in EUR"},null,null,null,null,null,null,null,null,null,null,null,null,null,null,"i",{"$f":"IF(H4=\"Erdgas\",\"Erdgaskosten exkl. Steuern, Abgaben, Netzentgelte, etc.\",\"Stromkosten exkl. Steuern, Abgaben, Netzentgelte, etc.\")","v":"Stromkosten exkl. Steuern, Abgaben, Netzentgelte, etc."}]
[null,{"$f":"IF(H4=\"Erdgas\",\"Erdgasverbrauch in kWh von 1. Februar bis 30. September 2022\",\"Stromverbrauch in kWh von 1. Februar bis 30. September 2022\")","v":"Stromverbrauch in kWh von 1. Februar bis 30. September 2022"},null,null,null,null,null,null,null,{"$f":"IFERROR(IF(#REF!=\"Nein\",VLOOKUP(H3,'1 - Vergleichszeitraum'!H:AA,20,FALSE)/12,\"\"),\"\")","v":""},{"$f":"IFERROR(IF(#REF!=\"Nein\",VLOOKUP(H3,'1 - Vergleichszeitraum'!H:AA,20,FALSE)/12,\"\"),\"\")","v":""},{"$f":"IFERROR(IF(#REF!=\"Nein\",VLOOKUP(H3,'1 - Vergleichszeitraum'!H:AA,20,FALSE)/12,\"\"),\"\")","v":""},{"$f":"IFERROR(IF(#REF!=\"Nein\",VLOOKUP(H3,'1 - Vergleichszeitraum'!H:AA,20,FALSE)/12,\"\"),\"\")","v":""},{"$f":"IFERROR(IF(#REF!=\"Nein\",VLOOKUP(H3,'1 - Vergleichszeitraum'!H:AA,20,FALSE)/12,\"\"),\"\")","v":""},{"$f":"IFERROR(IF(#REF!=\"Nein\",VLOOKUP(H3,'1 - Vergleichszeitraum'!H:AA,20,FALSE)/12,\"\"),\"\")","v":""},{"$f":"IFERROR(IF(#REF!=\"Nein\",VLOOKUP(H3,'1 - Vergleichszeitraum'!H:AA,20,FALSE)/12,\"\"),\"\")","v":""},"i","Bitte ergänzen Sie die monatlichen Verbrauchswerte gem. Lastprofilzähler."]
[null,{"$f":"IF(H4=\"Erdgas\",\"Zwischensumme Erdgas\",IF(H4=\"Strom\",\"Zwischensumme Strom\",\"\"))","v":""},null,null,null,null,null,null,{"$f":"IFERROR(I5*I6/IF($B7=\"Zwischensumme Strom\",'2 - Förderzeitraum'!AG$9,IF($B7=\"Zwischensumme Erdgas\",'2 - Förderzeitraum'!AG$10,\"\")),\"\")","v":""},{"$f":"IFERROR(J5*J6/IF($B7=\"Zwischensumme Strom\",'2 - Förderzeitraum'!AH$9,IF($B7=\"Zwischensumme Erdgas\",'2 - Förderzeitraum'!AH$10,\"\")),\"\")","v":""},{"$f":"IFERROR(K5*K6/IF($B7=\"Zwischensumme Strom\",'2 - Förderzeitraum'!AI$9,IF($B7=\"Zwischensumme Erdgas\",'2 - Förderzeitraum'!AI$10,\"\")),\"\")","v":""},{"$f":"IFERROR(L5*L6/IF($B7=\"Zwischensumme Strom\",'2 - Förderzeitraum'!AJ$9,IF($B7=\"Zwischensumme Erdgas\",'2 - Förderzeitraum'!AJ$10,\"\")),\"\")","v":""},{"$f":"IFERROR(M5*M6/IF($B7=\"Zwischensumme Strom\",'2 - Förderzeitraum'!AK$9,IF($B7=\"Zwischensumme Erdgas\",'2 - Förderzeitraum'!AK$10,\"\")),\"\")","v":""},{"$f":"IFERROR(N5*N6/IF($B7=\"Zwischensumme Strom\",'2 - Förderzeitraum'!AL$9,IF($B7=\"Zwischensumme Erdgas\",'2 - Förderzeitraum'!AL$10,\"\")),\"\")","v":""},{"$f":"IFERROR(O5*O6/IF($B7=\"Zwischensumme Strom\",'2 - Förderzeitraum'!AM$9,IF($B7=\"Zwischensumme Erdgas\",'2 - Förderzeitraum'!AM$10,\"\")),\"\")","v":""},{"$f":"IFERROR(P5*P6/IF($B7=\"Zwischensumme Strom\",'2 - Förderzeitraum'!AN$9,IF($B7=\"Zwischensumme Erdgas\",'2 - Förderzeitraum'!AN$10,\"\")),\"\")","v":""}]

{"sheet":"Liste","index":7,"n_rows":2,"n_cols":2,"rows_kept":2,"cut":false,"hidden":true,"merged":[]}
["Strom","Nein"]
["Erdgas","Ja"]